fUSD/lending_fUSD_20241219
["ID","MTS","AMOUNT","RATE_DAILY","PERIOD"]
[346028215,1734636647603,-553.43,0.00024999,4]
[346028216,1734636647612,-500.0,0.00024999,4]
[346028217,1734636647621,-500.0,0.00024999,4]
[346028218,1734636647631,-500.0,0.00024999,4]
[346028219,1734636647640,-500.0,0.00024999,4]
[346028220,1734636647650,-500.0,0.00024999,4]
[346028221,1734636647659,-500.0,0.00024999,4]
[346028222,1734636647669,-500.0,0.00024999,4]
[346028223,1734636647678,-575.22,0.00024999,4]
[346028224,1734636647688,-500.0,0.00024999,4]
[346028225,1734636647699,-500.0,0.00024999,4]
[346028226,1734636647709,-500.0,0.00024999,4]
[346028227,1734636647718,-500.0,0.00024999,4]
[346028228,1734636647728,-500.0,0.00024999,4]
[346028229,1734636647738,-508.82,0.00024999,4]
[346028230,1734636647747,-500.0,0.00024999,4]
[346028231,1734636647757,-539.13405099,0.00024999,4]
[346028232,1734636647766,-500.0,0.00024999,4]
[346028233,1734636647776,-601.24,0.00024999,4]
[346028234,1734636647785,-500.0,0.00024999,4]
[346028235,1734636647795,-500.0,0.00024999,4]
[346028236,1734636647804,-500.0,0.00024999,4]
[346028237,1734636647814,-618.31778624,0.00024999,4]
[346028238,1734636647823,-500.0,0.00024999,4]
[346028239,1734636647832,-116.45302826,0.00024999,4]
[346028240,1734636647846,-129.44697174,0.00024999,4]
[346028241,1734636647855,-230.66255338,0.00024999,4]
[346028242,1734636647866,-269.33744662,0.00024999,4]
[346028243,1734636647875,-643.56,0.00024999,4]
[346028244,1734636647885,-500.0,0.00024999,4]
[346028245,1734636647895,-500.0,0.00024999,4]
[346028246,1734636647904,-500.0,0.00024999,4]
[346028247,1734636647913,-500.0,0.00024999,4]
[346028248,1734636647923,-500.0,0.00024999,4]
[346028249,1734636647933,-500.0,0.00024999,4]
[346028250,1734636647943,-321.99,0.00024999,4]
[346028251,1734636647953,-220.22275148,0.00024999,4]
[346028252,1734636647962,-500.0,0.00024999,4]
[346028253,1734636647971,-500.0,0.00024999,4]
[346028254,1734636647982,-500.0,0.00024999,4]
[346028255,1734636647992,-539.96,0.00024999,4]
[346028256,1734636648001,-254.0119179,0.00024999,4]
[346028257,1734636648013,-245.9880821,0.00024999,4]
[346028258,1734636648023,-500.0,0.00024999,4]
[346028259,1734636648032,-500.0,0.00024999,4]
[346028260,1734636648041,-500.0,0.00024999,4]
[346028261,1734636648051,-500.0,0.00024999,4]
[346028262,1734636648061,-500.0,0.00024999,4]
[346028263,1734636648070,-500.0,0.00024999,4]
[346028264,1734636648080,-500.0,0.00024999,4]
[346028265,1734636648089,-500.0,0.00024999,4]
[346028266,1734636648099,-500.0,0.00024999,4]
[346028267,1734636648108,-500.0,0.00024999,4]
[346028268,1734636648117,-500.0,0.00024999,4]
[346028269,1734636648127,-500.0,0.00024999,4]
[346028270,1734636648137,-500.0,0.00024999,4]
[346028271,1734636648146,-500.0,0.00024999,4]
[346028272,1734636648155,-500.0,0.00024999,4]
[346028273,1734636648164,-500.0,0.00024999,4]
[346028274,1734636648174,-500.0,0.00024999,2]
[346028275,1734636648184,-500.0,0.00024999,4]
[346028276,1734636648198,-536.54,0.00024999,4]
[346028277,1734636648208,-500.0,0.00024999,4]
[346028278,1734636648217,-562.83,0.00024999,4]
[346028279,1734636648227,-500.0,0.00024999,4]
[346028280,1734636648378,-500.0,0.00024999,4]
[346028281,1734636648388,-500.0,0.00024999,4]
[346028282,1734636648398,-500.0,0.00024999,4]
[346028283,1734636648407,-512.1,0.00024999,4]
[346028284,1734636648416,-500.0,0.00024999,4]
[346028285,1734636648425,-500.0,0.00024999,4]
[346028286,1734636648435,-577.23,0.00024999,4]
[346028287,1734636648444,-500.0,0.00024999,4]
[346028288,1734636648453,-500.0,0.00024999,4]
[346028289,1734636648463,-500.0,0.00024999,4]
[346028290,1734636648472,-500.0,0.00024999,4]
[346028291,1734636648481,-500.0,0.00024999,4]
[346028292,1734636648490,-500.0,0.00024999,4]
[346028293,1734636648499,-500.0,0.00024999,4]
[346028294,1734636648509,-500.0,0.00024999,4]
[346028295,1734636648518,-500.0,0.00024999,4]
[346028296,1734636648527,-500.0,0.00024999,4]
[346028297,1734636648536,-500.0,0.00024999,4]
[346028298,1734636648545,-500.0,0.00024999,4]
[346028299,1734636648555,-500.0,0.00024999,4]
[346028300,1734636648564,-500.0,0.00024999,4]
[346028301,1734636648573,-500.0,0.00024999,4]
[346028302,1734636648582,-500.0,0.00024999,4]
[346028303,1734636648591,-500.0,0.00024999,4]
[346028304,1734636648601,-500.0,0.00024999,4]
[346028305,1734636648611,-545.41,0.00024999,4]
[346028306,1734636648620,-527.87,0.00024999,4]
[346028307,1734636648629,-500.0,0.00024999,4]
[346028308,1734636648637,-500.0,0.00024999,4]
[346028309,1734636648646,-500.0,0.00024999,4]
[346028310,1734636648656,-500.0,0.00024999,4]
[346028311,1734636648665,-500.0,0.00024999,4]
[346028312,1734636648674,-500.0,0.00024999,4]
[346028313,1734636648683,-500.0,0.00024999,4]
[346028314,1734636648696,-500.0,0.00024999,4]
[346028315,1734636648705,-500.0,0.00024999,4]
[346028316,1734636648715,-501.8,0.00024999,4]
[346028317,1734636648724,-500.0,0.00024999,4]
[346028318,1734636648733,-500.0,0.00024999,4]
[346028319,1734636648742,-500.0,0.00024999,4]
[346028320,1734636648751,-500.0,0.00024999,4]
[346028321,1734636648761,-500.0,0.00024999,4]
[346028322,1734636648770,-500.0,0.00024999,4]
[346028323,1734636648779,-500.0,0.00024999,4]
[346028324,1734636648789,-500.0,0.00024999,4]
[346028325,1734636648798,-1114.96,0.00024999,4]
[346028326,1734636648807,-500.0,0.00024999,4]
[346028327,1734636648816,-500.0,0.00024999,4]
[346028328,1734636648826,-500.0,0.00024999,4]
[346028329,1734636648835,-500.0,0.00024999,4]
[346028330,1734636648844,-708.7,0.00024999,4]
[346028331,1734636648853,-500.0,0.00024999,4]
[346028332,1734636648862,-545.38,0.00024999,4]
[346028333,1734636648872,-515.23,0.00024999,4]
[346028334,1734636648881,-321.28500252,0.00024999,4]
[346028335,1734636648890,-500.0,0.00024999,4]
[346028336,1734636648899,-500.0,0.00024999,4]
[346028337,1734636648909,-500.0,0.00024999,4]
[346028338,1734636648919,-500.0,0.00024999,4]
[346028339,1734636648929,-500.0,0.00024999,4]
[346028340,1734636648940,-500.0,0.00024999,4]
[346028341,1734636648951,-1709.02,0.00024999,4]
[346028342,1734636648960,-500.0,0.00024999,4]
[346028343,1734636648970,-500.0,0.00024999,4]
[346028344,1734636648980,-222.69619225,0.00024999,4]
[346028345,1734636648989,-500.0,0.00024999,4]
[346028346,1734636648997,-500.0,0.00024999,4]
[346028347,1734636649008,-500.0,0.00024999,4]
[346028348,1734636649018,-500.0,0.00024999,4]
[346028349,1734636649028,-500.0,0.00024999,4]
[346028350,1734636649037,-500.0,0.00024999,4]
[346028351,1734636649046,-561.94,0.00024999,4]
[346028352,1734636649055,-500.0,0.00024999,4]
[346028353,1734636649065,-500.0,0.00024999,4]
[346028354,1734636649074,-500.0,0.00024999,4]
[346028355,1734636649083,-500.0,0.00024999,4]
[346028356,1734636649093,-418.92694237,0.00024999,4]
[346028357,1734636649103,-500.0,0.00024999,4]
[346028358,1734636649112,-500.0,0.00024999,4]
[346028359,1734636649123,-774.93,0.00024999,4]
[346028360,1734636649132,-1546.21691,0.00024999,2]
[346028361,1734636649142,-283.14393876,0.00024999,4]
[346028362,1734636649151,-500.0,0.00024999,4]
[346028363,1734636649160,-500.0,0.00024999,4]
[346028364,1734636649169,-500.0,0.00024999,4]
[346028365,1734636649179,-830.62,0.00024999,4]
[346028366,1734636649189,-500.0,0.00024999,4]
[346028367,1734636649200,-500.0,0.00024999,4]
[346028368,1734636649209,-500.0,0.00024999,4]
[346028369,1734636649219,-598.14,0.00024999,4]
[346028370,1734636649228,-277.22,0.00024999,4]
[346028371,1734636649238,-500.0,0.00024999,4]
[346028372,1734636649247,-500.0,0.00024999,4]
[346028373,1734636649257,-500.0,0.00024999,4]
[346028374,1734636649266,-500.0,0.00024999,4]
[346028375,1734636649275,-500.0,0.00024999,4]
[346028376,1734636649285,-1115.0,0.00025,2]
[346028377,1734636649295,-500.0,0.00025,120]
[346028378,1734636649304,-4599.5075665,0.00025,2]
[346028379,1734636649318,-871.07233002,0.00025,2]
[346028382,1734636795627,197.29466178,0.000225,30]
[346028383,1734636905732,2006.37,0.000235,120]
[346028384,1734636930137,157.21,0.00010137,2]
[346028418,1734637809654,154.29,0.00010137,2]
[346028441,1734637836223,-1516.13873911,0.00021064,2]
[346028442,1734637836234,-500.0,0.00021164,2]
[346028443,1734637836245,-500.0,0.00021164,2]
[346028444,1734637836255,-520.13,0.00021291,2]
[346028445,1734637836265,-157.21,0.00021669,2]
[346028446,1734637836276,-154.29,0.00021669,2]
[346028447,1734637836287,-150.0,0.00022488,4]
[346028448,1734637836297,-150.0,0.00022488,4]
[346028449,1734637836308,-150.0,0.00023112,4]
[346028450,1734637836318,-8855.77195254,0.00023242,2]
[346028451,1734637836335,-359.34575683,0.00023242,2]
[346028452,1734637836348,-14674.88229063,0.00023242,2]
[346028453,1734637836359,-1000.0,0.0002326,2]
[346028454,1734637836369,-773.41,0.00023318,2]
[346028455,1734637836380,-152.83,0.00023354,2]
[346028456,1734637836390,-150.0,0.0002337,2]
[346028457,1734637836401,-177.63,0.00023371,2]
[346028458,1734637836411,-250.0,0.00023385,2]
[346028459,1734637836425,-500.0,0.00023415,7]
[346028460,1734637836436,-2091.8,0.00023443,2]
[346028461,1734637836447,-250.0,0.00023461,2]
[346028462,1734637836460,-375.34770937,0.00023526,2]
[346028463,1734637836475,-124.65229063,0.00023526,2]
[346028464,1734637836486,-520.13,0.00023555,2]
[346028465,1734637836497,-1228.02,0.0002356,2]
[346028466,1734637836508,-396.52,0.00023626,2]
[346028467,1734637836519,-500.0,0.00023689,7]
[346028468,1734637836531,-150.0,0.00023737,4]
[346028469,1734637836542,-1226.09,0.00023745,2]
[346028470,1734637836553,-419.01,0.0002375,2]
[346028471,1734637836564,-185.71,0.00023774,2]
[346028472,1734637836575,-250.0,0.00023779,2]
[346028473,1734637836586,-164.38996149,0.00023804,30]
[346028474,1734637836600,-6.70003851,0.00023804,30]
[346028475,1734637836611,-1147.04275349,0.00023819,2]
[346028476,1734637836624,-352.95724651,0.00023819,2]
[346028477,1734637836635,-213.79,0.00023858,2]
[346028478,1734637836646,-1486.366,0.00023946,5]
[346028479,1734637836657,-225.18,0.00023946,2]
[346028480,1734637836669,-175.378,0.00023946,5]
[346028481,1734637836679,-500.0,0.00023962,7]
[346028482,1734637836690,-28901.0,0.00024015,2]
[346028483,1734637836701,-514.66,0.000241,2]
[346028484,1734637836717,-159.45,0.00024124,2]
[346028485,1734637836728,-153.85846902,0.00024136,2]
[346028486,1734637836738,-153.53125181,0.00024137,2]
[346028487,1734637836748,-500.0,0.00024235,7]
[346028488,1734637836759,-223.0,0.0002425,2]
[346028489,1734637836770,-150.0,0.00024362,4]
[346028490,1734637836782,-1568.0,0.000244,3]
[346028491,1734637836792,-223.0,0.000245,2]
[346028492,1734637836803,-3278.0,0.000245,3]
[346028493,1734637836813,-3000.0,0.000245,3]
[346028494,1734637836824,-500.0,0.00024508,7]
[346028495,1734637836835,-150.0,0.00024572,2]
[346028496,1734637836845,-211.0,0.0002463,2]
[346028497,1734637836856,-150.0,0.00024658,2]
[346028498,1734637836866,-223.0,0.0002475,2]
[346028499,1734637836877,-13744.0,0.00024766,2]
[346028500,1734637836887,-150.0,0.00024766,2]
[346028501,1734637836898,-3884.0,0.00024766,2]
[346028502,1734637836908,-1100.0,0.00024766,2]
[346028503,1734637836919,-500.0,0.00024799,4]
[346028504,1734637836929,-500.0,0.00024799,4]
[346028505,1734637836940,-500.0,0.00024799,4]
[346028506,1734637836950,-586.06,0.00024799,4]
[346028507,1734637836965,-500.0,0.00024799,4]
[346028508,1734637836980,-501.29683071,0.00024799,4]
[346028509,1734637836991,-172.97,0.00024799,4]
[346028510,1734637837002,-500.0,0.00024799,4]
[346028511,1734637837013,-158.64,0.00024799,4]
[346028512,1734637837023,-169.94,0.00024799,4]
[346028513,1734637837034,-500.0,0.00024799,4]
[346028515,1734637837044,-500.0,0.00024799,4]
[346028517,1734637837054,-500.0,0.00024799,4]
[346028519,1734637837065,-500.0,0.00024799,4]
[346028521,1734637837075,-500.0,0.00024799,4]
[346028522,1734637837085,-500.0,0.00024799,4]
[346028534,1734637837327,-482.21,0.00024799,4]
[346028536,1734637837342,-164.87,0.00024799,4]
[346028538,1734637837352,-500.0,0.00024799,4]
[346028540,1734637837361,-501.99733995,0.00024799,4]
[346028542,1734637837372,-1000.0,0.00024799,5]
[346028544,1734637837381,-500.0,0.00024799,4]
[346028549,1734637837391,-500.0,0.00024799,4]
[346028553,1734637837400,-89.28324357,0.00024799,4]
[346028557,1734637837412,-362.94287197,0.00024799,4]
[346028561,1734637837425,-47.77388446,0.00024799,4]
[346028565,1734637837436,-500.0,0.00024799,4]
[346028568,1734637837448,-500.0,0.00024799,4]
[346028574,1734637837462,-189.88,0.00024799,4]
[346028575,1734637837472,-500.0,0.00024799,4]
[346028578,1734637837482,-500.0,0.00024799,4]
[346028581,1734637837492,-500.0,0.00024799,4]
[346028584,1734637837501,-500.0,0.00024799,4]
[346028587,1734637837511,-500.0,0.00024799,4]
[346028590,1734637837522,-500.0,0.00024799,4]
[346028593,1734637837532,-500.0,0.00024799,4]
[346028596,1734637837542,-500.0,0.00024799,4]
[346028599,1734637837551,-243.65544091,0.00024799,4]
[346028602,1734637837560,-500.0,0.00024799,4]
[346028604,1734637837570,-500.0,0.00024799,4]
[346028607,1734637837579,-500.0,0.00024799,4]
[346028609,1734637837588,-259.16310742,0.00024799,4]
[346028611,1734637837598,-500.0,0.00024799,4]
[346028613,1734637837607,-260.0,0.00024803,14]
[346028615,1734637837616,-853.6367,0.000249,2]
[346028617,1734637837626,-9958.25551167,0.000249,2]
[346028619,1734637837635,-530.01,0.000249,31]
[346028621,1734637837644,-530.01,0.000249,31]
[346028623,1734637837654,-530.01,0.000249,31]
[346028625,1734637837663,-530.01,0.000249,31]
[346028627,1734637837672,-530.01,0.000249,31]
[346028629,1734637837681,-530.01,0.000249,31]
[346028631,1734637837691,-530.01,0.000249,31]
[346028633,1734637837700,-530.01,0.000249,31]
[346028635,1734637837716,-530.01,0.000249,31]
[346028637,1734637837726,-530.01,0.000249,31]
[346028639,1734637837735,-530.01,0.000249,31]
[346028641,1734637837745,-530.01,0.000249,31]
[346028643,1734637837755,-530.01,0.000249,31]
[346028645,1734637837765,-530.01,0.000249,31]
[346028647,1734637837774,-530.01,0.000249,31]
[346028649,1734637837784,-530.01,0.000249,31]
[346028651,1734637837794,-160.27137806,0.000249,2]
[346028653,1734637837804,-1972.7393,0.000249,2]
[346028655,1734637837814,-176.47,0.0002493,2]
[346028657,1734637837824,-150.0,0.00024986,4]
[346028659,1734637837834,-150.0,0.00024986,4]
[346028661,1734637837844,-157.04,0.0002499,2]
[346028663,1734637837853,-157.04,0.0002499,2]
[346028665,1734637837863,-283.10027114,0.00024999,2]
[346028667,1734637837872,-500.0,0.00024999,2]
[346028669,1734637837882,-171.52046452,0.00024999,2]
[346028671,1734637837892,-350.12013744,0.00024999,2]
[346028672,1734637837902,-500.0,0.00024999,2]
[346028675,1734637837912,-500.0,0.00024999,2]
[346028676,1734637837922,-500.0,0.00024999,2]
[346028679,1734637837931,-309.12828003,0.00024999,2]
[346028681,1734637837943,-500.0,0.00024999,4]
[346028683,1734637837953,-261.03785435,0.00024999,4]
[346028685,1734637837971,-238.96214565,0.00024999,4]
[346028686,1734637837980,-500.0,0.00024999,4]
[346028688,1734637837990,-500.0,0.00024999,2]
[346028691,1734637838000,-484.6,0.00024999,4]
[346028692,1734637838010,-309.96,0.00024999,4]
[346028694,1734637838020,-546.89,0.00024999,4]
[346028696,1734637838030,-500.0,0.00024999,4]
[346028698,1734637838040,-1279.79462505,0.00024999,2]
[346028701,1734637838052,-8.71946495,0.00024999,2]
[346028703,1734637838061,-243.12,0.00024999,4]
[346028705,1734637838071,-466.08,0.00024999,4]
[346028707,1734637838080,-500.0,0.00024999,4]
[346028709,1734637838090,-447.99,0.00024999,4]
[346028711,1734637838099,-500.0,0.00024999,4]
[346028713,1734637838108,-366.06,0.00024999,4]
[346028715,1734637838117,-500.0,0.00024999,4]
[346028717,1734637838127,-500.0,0.00024999,4]
[346028719,1734637838136,-500.0,0.00024999,4]
[346028721,1734637838146,-646.21,0.00024999,4]
[346028723,1734637838156,-500.0,0.00024999,4]
[346028725,1734637838165,-571.7467411,0.00024999,2]
[346028727,1734637838175,-500.0,0.00024999,4]
[346028729,1734637838184,-287.86418394,0.00024999,4]
[346028731,1734637838193,-500.0,0.00024999,4]
[346028733,1734637838203,-500.0,0.00024999,4]
[346028735,1734637838218,-243.49,0.00024999,4]
[346028737,1734637838227,-303.62,0.00024999,4]
[346028739,1734637838237,-500.0,0.00024999,4]
[346028741,1734637838246,-500.0,0.00024999,4]
[346028743,1734637838255,-1068.5,0.00024999,4]
[346028746,1734637838264,-500.0,0.00024999,4]
[346028749,1734637838275,-500.0,0.00024999,4]
[346028752,1734637838284,-500.0,0.00024999,4]
[346028755,1734637838293,-500.0,0.00024999,4]
[346028758,1734637838303,-500.0,0.00024999,4]
[346028761,1734637838313,-500.0,0.00024999,4]
[346028764,1734637838322,-500.0,0.00024999,4]
[346028767,1734637838334,-500.0,0.00024999,4]
[346028770,1734637838343,-500.0,0.00024999,4]
[346028773,1734637838352,-500.0,0.00024999,4]
[346028776,1734637838361,-500.0,0.00024999,4]
[346028778,1734637838370,-648.25,0.00024999,4]
[346028779,1734637838380,-500.0,0.00024999,4]
[346028781,1734637838389,-500.0,0.00024999,4]
[346028784,1734637838399,-679.17,0.00024999,4]
[346028785,1734637838409,-623.09,0.00024999,4]
[346028787,1734637838419,-500.0,0.00024999,4]
[346028789,1734637838432,-550.22,0.00024999,4]
[346028791,1734637838442,-184.31937066,0.00024999,4]
[346028793,1734637838451,-500.0,0.00024999,4]
[346028795,1734637838468,-500.0,0.00024999,4]
[346028797,1734637838478,-500.0,0.00024999,4]
[346028799,1734637838488,-389.04,0.00024999,4]
[346028801,1734637838499,-500.0,0.00024999,4]
[346028803,1734637838508,-500.0,0.00024999,4]
[346028805,1734637838519,-647.22,0.00024999,4]
[346028807,1734637838530,-500.0,0.00024999,4]
[346028809,1734637838541,-500.0,0.00024999,4]
[346028811,1734637838552,-308.09269752,0.00024999,4]
[346028814,1734637838563,-500.0,0.00024999,4]
[346028815,1734637838573,-500.0,0.00024999,4]
[346028817,1734637838583,-500.0,0.00024999,4]
[346028819,1734637838593,-500.0,0.00024999,4]
[346028821,1734637838604,-500.0,0.00024999,4]
[346028823,1734637838615,-500.0,0.00024999,4]
[346028825,1734637838625,-500.0,0.00024999,4]
[346028827,1734637838635,-406.32,0.00024999,4]
[346028829,1734637838646,-500.0,0.00024999,4]
[346028831,1734637838657,-500.0,0.00024999,4]
[346028833,1734637838668,-500.0,0.00024999,4]
[346028835,1734637838677,-1181.98,0.00024999,4]
[346028836,1734637838687,-500.0,0.00024999,4]
[346028838,1734637838697,-1637.81,0.00024999,4]
[346028840,1734637838714,-500.0,0.00024999,4]
[346028842,1734637838724,-500.0,0.00024999,4]
[346028845,1734637838735,-500.0,0.00024999,4]
[346028847,1734637838745,-500.0,0.00024999,4]
[346028849,1734637838754,-216.0,0.00024999,4]
[346028851,1734637838764,-500.0,0.00024999,4]
[346028853,1734637838774,-742.64,0.00024999,4]
[346028855,1734637838783,-500.0,0.00024999,4]
[346028857,1734637838792,-500.0,0.00024999,4]
[346028859,1734637838801,-796.01,0.00024999,4]
[346028861,1734637838811,-500.0,0.00024999,4]
[346028863,1734637838820,-500.0,0.00024999,4]
[346028865,1734637838830,-500.0,0.00024999,4]
[346028867,1734637838840,-500.0,0.00024999,4]
[346028869,1734637838850,-500.0,0.00024999,4]
[346028871,1734637838860,-405.989586,0.00024999,4]
[346028873,1734637838870,-500.0,0.00024999,4]
[346028875,1734637838880,-500.0,0.00024999,4]
[346028877,1734637838890,-500.0,0.00024999,4]
[346028879,1734637838899,-556.55482227,0.00024999,4]
[346028881,1734637838909,-500.0,0.00024999,4]
[346028883,1734637838918,-500.0,0.00024999,4]
[346028885,1734637838927,-1332.61877719,0.00024999,2]
[346028886,1734637838936,-500.0,0.00024999,4]
[346028888,1734637838947,-225.2,0.00024999,4]
[346028890,1734637838960,-500.0,0.00024999,4]
[346028892,1734637838969,-500.0,0.00024999,4]
[346028895,1734637838979,-500.0,0.00024999,4]
[346028897,1734637838989,-500.0,0.00024999,4]
[346028899,1734637838999,-500.0,0.00024999,4]
[346028901,1734637839009,-1347.0,0.00025,2]
[346028903,1734637839019,-16450.73501163,0.00025,3]
[346028905,1734637839031,-1280.53011235,0.00025,3]
[346028911,1734637839083,-78591.41199586,0.00025,3]
[346028913,1734637839095,-2810.83083609,0.00025,3]
[346028915,1734637839105,-30329.15965708,0.00025,2]
[346028917,1734637839122,-4766.94562261,0.00025,2]
[346028919,1734637839134,-9780.7,0.00025,2]
[346028922,1734637839146,-1920.55029064,0.00025,2]
[346028924,1734637839158,-12893.8938511,0.00025,2]
[346028926,1734637839170,-18568.61241719,0.00025,2]
[346028928,1734637839182,-106160.0,0.00025,2]
[346028934,1734637839237,-500.0,0.00024999,4]
[346028936,1734637839247,-48743.53538845,0.00025,2]
[346028938,1734637839260,-106532.75490895,0.00025,2]
[346028940,1734637839271,-50759.683578,0.00025,2]
[346028942,1734637839283,-66575.6687024,0.00025,2]
[346028945,1734637839295,-972.18541,0.00025,2]
[346028947,1734637839307,-56014.43369996,0.00025,2]
[346028949,1734637839319,-1092.81999998,0.00025,2]
[346028997,1734637839802,-500.0,0.00024999,4]
[346028999,1734637839812,-6404.125,0.00025,2]
[346029001,1734637839824,-3424.00000001,0.00025,2]
[346029002,1734637839837,-1533.20471843,0.00025,2]
[346029003,1734637839849,-890.63972066,0.00025,2]
[346029004,1734637839860,-4951.8833431,0.00025,2]
[346029005,1734637839872,-4879.0723208,0.00025,2]
[346029006,1734637839885,-1796.02657339,0.00025,2]
[346029007,1734637839897,-1356.76306661,0.00025,2]
[346029015,1734637840201,-96499.99999998,0.00025,2]
[346029016,1734637840217,-2437499.99999875,0.00025,2]
[346029017,1734637840228,-6573.89833254,0.00025,2]
[346029018,1734637840240,-5981.92312706,0.00025,2]
[346029019,1734637840251,-14494.33123423,0.00025,2]
[346029021,1734637840263,-2695.34760128,0.00025,2]
[346029023,1734637840279,-27450.97599999,0.00025,2]
[346029024,1734637840291,-14554.5,0.00025,2]
[346029026,1734637840303,-3290.47607736,0.00025,2]
[346029028,1734637840316,-1916.099995,0.00025,2]
[346029252,1734637842663,-153.0,0.00024439,2]
[346029254,1734637842673,-153.0,0.00024439,2]
[346029257,1734637842682,-500.0,0.00024999,4]
[346029259,1734637842692,-500.0,0.00024999,4]
[346029263,1734637842701,-24585.48084737,0.00025,2]
[346029266,1734637842717,-14331.01553727,0.00025,2]
[346029268,1734637842728,-304.34920647,0.00025,2]
[346029270,1734637842744,-42923.6904437,0.00025,2]
[346029280,1734637842824,-346.76935152,0.00024216,2]
[346029282,1734637842834,-830.01064848,0.00025,2]
[346029284,1734637842846,-864.2,0.00025,2]
[346029299,1734637843046,-480.0,0.00025,2]
[346029300,1734637843058,-14061.62,0.00025,2]
[346029301,1734637843069,-1635.16573375,0.00025,2]
[346029330,1734637845626,-153.0,0.00024439,2]
[346029331,1734637845636,-153.0,0.00024439,2]
[346029332,1734637845645,-153.0,0.00024439,2]
[346029333,1734637845655,-153.0,0.00024439,2]
[346029334,1734637845664,-153.0,0.00024439,2]
[346029335,1734637845674,-153.0,0.00024439,2]
[346029336,1734637845683,-346.76935152,0.00024598,2]
[346029337,1734637845692,-150.0,0.00024733,2]
[346029338,1734637845702,-150.0,0.00024742,2]
[346029339,1734637845715,-150.0,0.00024742,2]
[346029340,1734637845725,-150.0,0.00024743,2]
[346029341,1734637845734,-150.0,0.00024764,2]
[346029342,1734637845744,-150.0,0.0002477,2]
[346029343,1734637845754,-150.0,0.00024778,2]
[346029344,1734637845763,-150.0,0.0002478,2]
[346029345,1734637845773,-150.0,0.00024786,2]
[346029346,1734637845783,-150.0,0.0002479,2]
[346029347,1734637845792,-150.0,0.00024791,2]
[346029348,1734637845802,-150.0,0.00024793,2]
[346029349,1734637845811,-150.0,0.00024799,2]
[346029350,1734637845820,-150.0,0.00024811,2]
[346029351,1734637845830,-150.0,0.00024818,2]
[346029352,1734637845839,-150.0,0.00024822,2]
[346029353,1734637845849,-346.76935154,0.00024824,2]
[346029354,1734637845859,-150.0,0.00024841,2]
[346029355,1734637845868,-150.0,0.00024861,2]
[346029356,1734637845877,-150.0,0.00024869,2]
[346029357,1734637845887,-150.0,0.00024873,2]
[346029358,1734637845896,-150.0,0.00024874,2]
[346029359,1734637845905,-150.0,0.00024879,2]
[346029360,1734637845915,-150.0,0.00024879,2]
[346029361,1734637845924,-150.0,0.00024887,2]
[346029362,1734637845934,-150.0,0.00024887,2]
[346029363,1734637845943,-150.0,0.00024913,2]